bitfinex-derivatives/quotes_SOLF0:USTF0_20251119
["timestamp","ask_amount","ask_price","bid_price","bid_amount"]
[1763582649834,3.20195414,131.52,131.5,0.05617578]
[1763582650841,3.15,131.51,131.45,3.34]
[1763582651138,3.15,131.51,131.46,3.34]
[1763582651836,0.05566625,131.5,131.47,0.05213074]
[1763582652030,0.05566625,131.5,131.47,3.39213074]
[1763582652229,0.05566625,131.5,131.47,10.24543074]
[1763582652432,0.05566625,131.5,131.48,3.34]
[1763582653835,0.05566625,131.5,131.49,3.34]
[1763582655434,7.06528307,131.56,131.5,3.34]
[1763582655634,10.21528307,131.57,131.5,3.34]
[1763582655840,9.9983,131.57,131.51,6.8513]
[1763582656033,3.15,131.57,131.51,3.34]
[1763582656438,3.15,131.57,131.53,0.05646117]
[1763582656640,0.05830193,131.55,131.53,0.05646117]
[1763582657249,3.15,131.54,131.53,0.05646117]
[1763582657738,3.15,131.54,131.48,3.34]
[1763582657938,3.15,131.52,131.48,3.34]
[1763582658838,3.20038904,131.51,131.49,0.05144399]
[1763582659440,0.05038904,131.51,131.49,3.39144399]
[1763582659630,3.20038904,131.51,131.49,0.05144399]
[1763582660342,0.05038904,131.51,131.49,3.39144399]
[1763582662244,3.20038904,131.51,131.49,0.05144399]
[1763582662645,0.05038904,131.51,131.49,3.39144399]
[1763582663742,19.13,131.57,131.49,3.39144399]
[1763582663944,19.13,131.57,131.51,6.8512]
[1763582663945,6.8492,131.55,131.51,6.8512]
[1763582664252,9.9992,131.55,131.51,10.1912]
[1763582664447,9.9992,131.55,131.51,3.34]
[1763582664638,9.9992,131.55,131.52,0.0583069]
[1763582664943,0.04934193,131.54,131.52,0.0583069]
[1763582666644,10.05914193,131.54,131.52,0.0583069]
[1763582666838,3.16,131.53,131.52,0.0583069]
[1763582667141,3.16,131.52,131.48,3.1]
[1763582667340,3.16,131.52,131.46,3.1]
[1763582667740,3.16,131.49,131.46,3.1]
[1763582667943,3.16,131.49,131.46,3.1529483]
[1763582668244,3.21584867,131.49,131.46,3.1529483]
[1763582668640,10.06834867,131.49,131.46,0.0529483]
[1763582668841,3.16,131.48,131.46,0.0529483]
[1763582669142,10.0134,131.47,131.46,0.0529483]
[1763582669544,3.16,131.47,131.4,3.1]
[1763582669747,3.16,131.45,131.4,3.1]
[1763582670647,0.05144374,131.44,131.4,3.1]
[1763582670841,0.05144374,131.44,131.41,3.1]
[1763582672240,0.05144374,131.44,131.43,3.1]
[1763582676641,0.05144374,131.44,131.43,9.9554]
[1763582677149,0.05144374,131.44,131.41,6.8561]
[1763582677340,0.05144374,131.44,131.42,3.1]
[1763582677844,0.05144374,131.44,131.43,3.2]
[1763582679253,133.46027546,131.51,131.44,3.2]
[1763582679254,6.8527,131.49,131.44,3.2]
[1763582679651,9.9927,131.49,131.44,3.2]
[1763582679855,6.8518,131.5,131.46,3.2]
[1763582680154,0.05571951,131.49,131.47,0.05144374]
[1763582680360,0.05571951,131.49,131.47,3.25144374]
[1763582680552,6.90811951,131.49,131.47,3.25144374]
[1763582681653,0.05571951,131.49,131.47,3.25144374]
[1763582683154,3.19571951,131.49,131.47,0.05144374]
[1763582683652,6.8528,131.48,131.47,0.05144374]
[1763582683850,9.9928,131.48,131.47,0.05144374]
[1763582684055,3.14,131.48,131.41,3.2]
[1763582684760,6.8538,131.47,131.44,3.2]
[1763582684962,0.05335076,131.47,131.44,3.2]
[1763582687158,6.90685076,131.47,131.44,3.2]
[1763582687353,6.90685076,131.47,131.41,10.0562]
[1763582687354,10.04685076,131.47,131.41,10.0562]
[1763582687755,9.994,131.46,131.42,3.2]
[1763582688457,9.9945,131.45,131.41,3.2]
[1763582688656,0.04973199,131.44,131.41,3.2]
[1763582688862,6.90473199,131.44,131.41,3.2]
[1763582689751,0.04973199,131.44,131.41,3.2]
[1763582692457,3.18973199,131.44,131.41,3.2]
[1763582692864,6.11262269,131.44,131.41,3.2]
[1763582694869,12.96762269,131.44,131.41,3.2]
[1763582695566,0.04973199,131.44,131.41,3.2]
[1763582697265,2.9228907,131.42,131.38,3.2]
[1763582697467,0.0534022,131.41,131.38,3.2]
[1763582697856,0.0534022,131.41,131.4,3.2]
[1763582698462,0.0534022,131.41,131.4,10.057]
[1763582699267,0.0534022,131.41,131.4,3.2]
[1763582701071,0.0534022,131.41,131.38,3.2]
[1763582701258,0.0534022,131.41,131.35,7.08554172]
[1763582701259,6.8571,131.4,131.35,15.98]
[1763582701463,3.14,131.4,131.36,3.2]
[1763582701865,0.05151321,131.39,131.36,3.2]
[1763582703271,6.90911321,131.39,131.36,3.2]
[1763582704174,7.06528307,131.49,131.42,3.2]
[1763582704368,3.14,131.49,131.42,3.2]
[1763582704567,6.0628907,131.47,131.42,3.2]
[1763582704771,12.9164907,131.47,131.43,3.2]
[1763582705270,0.04856361,131.46,131.44,0.05151321]
[1763582705773,3.18856361,131.46,131.44,0.05151321]
[1763582706169,3.14,131.44,131.38,3.2]
[1763582706370,0.04856361,131.46,131.38,3.2]
[1763582706371,3.14,131.42,131.38,3.2]
[1763582706676,6.0628907,131.41,131.37,10.0583]
[1763582707272,0.05280023,131.4,131.38,10.058]
[1763582707868,2.9228907,131.46,131.41,3.18]
[1763582708072,3.3,131.45,131.41,3.18]
[1763582708275,6.2228907,131.46,131.41,3.18]
[1763582708877,3.3498294,131.45,131.42,0.05280023]
[1763582709175,3.3,131.43,131.35,3.18]
[1763582709378,6.2228907,131.42,131.35,3.18]
[1763582709972,13.0788907,131.42,131.35,10.0391]
[1763582710173,0.05073888,131.4,131.36,3.18]
[1763582710577,0.05073888,131.4,131.36,10.039]
[1763582710876,0.05073888,131.4,131.37,3.18]
[1763582716574,0.05073888,131.4,131.39,3.18]
[1763582717076,9.98817377,131.46,131.39,3.18]
[1763582717077,6.8544,131.46,131.39,3.18]
[1763582717380,11.47895372,131.46,131.42,3.18]
[1763582718082,0.05337895,131.45,131.43,0.04826781]
[1763582718477,6.90787895,131.45,131.43,0.04826781]
[1763582718676,3.3,131.44,131.43,0.04826781]
[1763582719585,10.1549,131.44,131.43,0.04826781]
[1763582722186,3.3,131.44,131.43,0.04826781]
[1763582723085,0.05337895,131.45,131.43,3.22826781]
[1763582726887,6.8524,131.49,131.45,3.05]
[1763582727687,4.62415053,131.5,131.45,3.05]
[1763582727988,3.35544432,131.48,131.46,0.05250329]
[1763582728190,6.2228907,131.47,131.41,3.05]
[1763582728794,3.3,131.48,131.43,3.05]
[1763582729094,0.0485259,131.47,131.45,3.05]
[1763582729690,0.0485259,131.47,131.45,9.9044]
[1763582729994,0.0485259,131.47,131.46,3.05]
[1763582731384,0.0485259,131.47,131.45,9.9044]
[1763582731791,0.0485259,131.47,131.44,0.04849555]
[1763582732090,0.0485259,131.47,131.44,3.09849555]
[1763582734200,6.2714166,131.47,131.44,0.04849555]
[1763582734390,3.3,131.46,131.44,0.04849555]
[1763582734699,6.2228907,131.45,131.44,0.04849555]
[1763582735301,9.7772907,131.45,131.39,3.05]
[1763582735493,2.9228907,131.45,131.39,3.05]
[1763582736288,0.05007077,131.43,131.39,3.05]
[1763582736584,0.05007077,131.43,131.42,3.05]
[1763582738394,0.05007077,131.43,131.42,9.906]
[1763582739606,0.05007077,131.43,131.42,3.05]
[1763582739899,0.05007077,131.43,131.39,3.08]
[1763582740099,0.05007077,131.43,131.41,3.08]
[1763582742399,3.27007077,131.43,131.37,3.08]
[1763582742600,10.12557077,131.43,131.38,6.858]
[1763582742797,10.12557077,131.43,131.39,3.08]
[1763582744099,0.05007077,131.43,131.4,3.08]
[1763582744800,0.05007077,131.43,131.42,3.08]
[1763582745506,0.05007077,131.43,131.42,9.936]
[1763582746401,0.05007077,131.43,131.42,3.08]
[1763582747308,0.05007077,131.43,131.42,9.936]
[1763582748007,6.8534,131.47,131.44,3.08]
[1763582749110,6.91177307,131.47,131.44,3.13257314]
[1763582749301,10.13177307,131.47,131.44,3.13257314]
[1763582750004,10.0739,131.46,131.44,0.05257314]
[1763582751507,3.22,131.46,131.44,0.05257314]
[1763582752007,0.05837307,131.47,131.44,3.13257314]
[1763582753811,0.05837307,131.47,131.45,3.08]
[1763582760217,0.05837307,131.47,131.46,3.08]
[1763582762115,0.05837307,131.47,131.45,3.08]
[1763582762617,0.05837307,131.47,131.46,3.08]
[1763582764712,0.05837307,131.47,131.46,9.9339]
[1763582765213,13.94568676,131.54,131.49,6.8522]
[1763582765414,11.39349793,131.54,131.5,3.08]
[1763582766220,0.05626747,131.53,131.51,3.13596352]
[1763582768612,0.05626747,131.53,131.51,9.98716352]
[1763582768813,7.09598676,131.61,131.52,3.26]
[1763582769120,1.32321907,131.6,131.52,3.26]
[1763582769417,3.07,131.58,131.54,3.26]
[1763582769815,0.05820338,131.57,131.55,3.30797016]
[1763582770120,0.05820338,131.57,131.55,3.31799555]
[1763582776920,3.12820338,131.57,131.55,0.05799555]
[1763582777127,9.97640338,131.57,131.55,0.05799555]
[1763582777309,6.90640338,131.57,131.55,3.31799555]
[1763582777512,3.07,131.56,131.55,0.05799555]
[1763582777819,3.07,131.55,131.46,3.26]
[1763582778716,0.05593375,131.52,131.5,3.26]
[1763582778917,7.63607665,131.59,131.5,3.26]
[1763582779119,3.07,131.59,131.51,3.26]
[1763582779424,9.9176,131.59,131.54,3.26]
[1763582779816,6.8466,131.61,131.57,3.26]
[1763582780011,0.05001826,131.6,131.59,3.26]
[1763582781020,0.05001826,131.6,131.58,0.04797814]
[1763582781221,0.05001826,131.6,131.58,3.30797814]
[1763582781818,3.07,131.59,131.58,0.04797814]
[1763582782418,3.12001826,131.6,131.58,0.04797814]
[1763582782922,0.05001826,131.6,131.58,0.04797814]
[1763582783120,0.05001826,131.6,131.58,3.30797814]
[1763582785237,6.89661826,131.6,131.58,3.30797814]
[1763582785627,10.00661826,131.6,131.58,0.04797814]
[1763582785824,9.9571,131.59,131.58,0.04797814]
[1763582786625,6.8471,131.59,131.58,0.04797814]
[1763582787035,3.11,131.59,131.52,3.24]
[1763582788020,0.04984707,131.57,131.55,3.24]
[1763582790534,0.04984707,131.57,131.56,10.0887]
[1763582790736,14.52207665,131.62,131.57,3.24]
[1763582791633,0.05438935,131.61,131.58,3.2960358]
[1763582792731,3.16438935,131.61,131.58,0.0560358]
[1763582793236,0.05438935,131.61,131.58,0.0560358]
[1763582793429,0.05438935,131.61,131.58,3.2960358]
[1763582794034,5.88874251,131.65,131.6,10.0866]
[1763582794234,1.32266586,131.65,131.61,3.24]
[1763582795131,0.05299462,131.64,131.62,3.29463184]
[1763582796028,6.89759462,131.64,131.62,3.29463184]
[1763582796733,10.00759462,131.64,131.62,0.05463184]
[1763582798134,6.89759462,131.64,131.62,0.05463184]
[1763582798642,3.11,131.63,131.62,0.05463184]
[1763582799045,6.89759462,131.64,131.62,0.05463184]
[1763582799337,10.00759462,131.64,131.62,0.05463184]
[1763582799542,3.11,131.63,131.62,0.05463184]
[1763582800129,7.67607665,131.63,131.62,0.05463184]
[1763582800334,3.11,131.63,131.62,0.05463184]
[1763582802846,6.02471977,131.63,131.62,0.05463184]
[1763582803547,2.91471977,131.63,131.62,0.05463184]
[1763582803740,6.89759462,131.64,131.62,3.38463184]
[1763582804351,6.89759462,131.64,131.62,0.05463184]
[1763582805547,0.05299462,131.64,131.62,3.38463184]
[1763582807752,6.02471977,131.7,131.62,3.38463184]
[1763582808049,7.34690822,131.7,131.62,3.33]
[1763582808448,14.18830822,131.7,131.63,3.33]
[1763582808641,7.34690822,131.7,131.63,3.33]
[1763582808841,0.04803895,131.68,131.66,3.33]
[1763582810241,0.04803895,131.68,131.67,3.33]
[1763582810552,6.02471977,131.73,131.67,3.33]
[1763582811552,3.11,131.7,131.69,0.0544281]
[1763582811853,3.11,131.7,131.68,0.05210996]
[1763582811854,3.11,131.69,131.68,0.05210996]
[1763582812054,6.02471977,131.69,131.68,0.05210996]
[1763582812254,3.11,131.68,131.65,3.33]
[1763582812549,2.91471977,131.67,131.62,3.33]
[1763582812754,6.02471977,131.67,131.62,3.33]
[1763582813348,0.05639833,131.66,131.64,3.33]
[1763582814754,0.05639833,131.66,131.63,3.37921516]
[1763582815545,3.16639833,131.66,131.63,3.37921516]
[1763582816556,6.02471977,131.65,131.63,0.04921516]
[1763582816952,2.91471977,131.65,131.63,3.37921516]
[1763582817154,12.9246181,131.66,131.63,3.37921516]
[1763582818544,6.0811181,131.66,131.63,3.37921516]
[1763582819658,2.9711181,131.66,131.63,3.37921516]
[1763582820760,3.11,131.65,131.63,0.04921516]
[1763582820961,6.02471977,131.64,131.63,0.04921516]
[1763582822861,12.86921977,131.64,131.63,0.04921516]
[1763582823558,6.02471977,131.64,131.63,0.04921516]
[1763582824161,6.0811181,131.66,131.63,3.37921516]
[1763582824369,6.02471977,131.64,131.63,0.04921516]
[1763582825456,2.91471977,131.64,131.63,0.04921516]
[1763582825657,6.0811181,131.66,131.63,3.37921516]
[1763582826762,10.00989833,131.66,131.63,3.37921516]
[1763582826957,6.0811181,131.66,131.63,3.37921516]
[1763582827154,0.05639833,131.66,131.63,3.37921516]
[1763582827464,2.9711181,131.66,131.63,3.37921516]
[1763582828461,0.05639833,131.66,131.63,3.37921516]
[1763582829764,0.05639833,131.66,131.64,3.09]
[1763582830265,6.12471977,131.71,131.66,3.09]
[1763582830571,30.44804061,131.74,131.66,3.09]
[1763582830761,7.44653156,131.74,131.7,3.09]
[1763582831373,0.05100711,131.73,131.71,0.05168758]
[1763582832067,3.26100711,131.73,131.71,0.05168758]
[1763582832265,3.21,131.71,131.66,3.09]
[1763582832565,6.12471977,131.69,131.63,3.09]
[1763582832771,12.96671977,131.69,131.64,3.09]
[1763582833171,3.21,131.68,131.64,3.09]
[1763582833368,0.04923439,131.67,131.65,3.14441123]
[1763582841673,2.91471977,131.66,131.65,0.05441123]
[1763582841878,6.12471977,131.66,131.65,0.05441123]
[1763582842380,12.96821977,131.66,131.65,0.05441123]
[1763582842581,3.21,131.65,131.61,3.09]
[1763582842778,6.12471977,131.64,131.61,3.09]
[1763582843182,2.91471977,131.64,131.61,3.09]
[1763582843679,0.0529349,131.64,131.61,3.14116727]
[1763582844287,0.0529349,131.64,131.61,9.98716727]
[1763582844471,0.0529349,131.64,131.62,3.09]
[1763582846685,3.1329349,131.64,131.61,3.10116727]
[1763582846884,3.1329349,131.64,131.61,0.05116727]
[1763582847081,3.1329349,131.64,131.61,3.10116727]
[1763582847478,0.0529349,131.64,131.61,3.10116727]
[1763582848877,0.0529349,131.64,131.62,3.05]
[1763582849272,3.1329349,131.64,131.61,0.05116727]
[1763582849775,5.99471977,131.63,131.61,0.05116727]
[1763582849979,9.75971977,131.63,131.61,0.05116727]
[1763582850176,3.08,131.62,131.61,0.05116727]
[1763582850672,2.91471977,131.62,131.61,0.05116727]
[1763582851983,9.81215467,131.64,131.61,3.10116727]
[1763582852285,3.1329349,131.64,131.61,3.10116727]
[1763582853383,9.9775349,131.64,131.61,3.10116727]
[1763582854380,9.9775349,131.64,131.61,0.05116727]
[1763582855389,12.83981977,131.63,131.61,0.05116727]
[1763582855593,3.08,131.62,131.61,0.05116727]
[1763582856279,12.83981977,131.63,131.61,0.05116727]
[1763582856478,0.0529349,131.64,131.61,3.10116727]
[1763582858190,0.0529349,131.64,131.63,3.16]
[1763582858386,2.91471977,131.69,131.63,3.16]
[1763582858687,2.91471977,131.69,131.65,3.16]
[1763582858688,12.89661977,131.69,131.65,3.16]
[1763582858884,9.9819,131.69,131.65,3.16]
[1763582859083,3.14,131.68,131.61,3.16]
[1763582859288,0.05602001,131.66,131.63,3.21155585]
[1763582860586,0.05602001,131.66,131.63,0.05155585]
[1763582860587,3.14,131.65,131.63,0.05155585]
[1763582861387,9.9842,131.65,131.63,0.05155585]
[1763582862685,3.14,131.65,131.63,0.05155585]
[1763582862896,0.05602001,131.66,131.63,3.21155585]
[1763582863089,3.19602001,131.66,131.63,3.21155585]
[1763582863985,0.05602001,131.66,131.63,3.21155585]
[1763582865194,0.05602001,131.66,131.64,3.16]
[1763582866287,7.04150905,131.71,131.64,3.16]
[1763582866901,28.54358208,131.72,131.64,3.16]
[1763582866902,26.14150905,131.72,131.64,3.16]
[1763582867405,9.9809,131.71,131.65,3.16]
[1763582867696,0.05015268,131.69,131.67,3.21789885]
[1763582872405,0.05015268,131.69,131.67,0.05789885]
[1763582873002,0.05015268,131.69,131.67,3.21789885]
[1763582876905,27.46332084,131.74,131.67,3.21789885]
[1763582876906,20.42181179,131.74,131.67,3.21789885]
[1763582877502,27.26161179,131.74,131.7,3.16]
[1763582878008,0.05639226,131.73,131.71,0.05689918]
[1763582878197,0.05639226,131.73,131.71,3.21689918]
[1763582878604,3.19639226,131.73,131.71,0.05689918]
[1763582879201,0.05639226,131.73,131.71,3.21689918]
[1763582880607,3.19639226,131.73,131.71,0.05689918]
[1763582883201,9.9804,131.72,131.71,0.05689918]
[1763582883400,3.14,131.72,131.71,0.05689918]
[1763582883802,9.9804,131.72,131.71,0.05689918]
[1763582884715,3.14,131.69,131.66,3.16]
[1763582884895,3.14,131.69,131.61,106.4898]
[1763582885208,3.14,131.69,131.62,3.16]
[1763582885603,0.05791784,131.67,131.65,3.16]
[1763582885803,6.8414,131.71,131.65,3.16]
[1763582886106,0.04788282,131.69,131.67,0.05392185]
[1763582886309,0.04788282,131.69,131.67,3.21392185]
[1763582887110,0.04788282,131.69,131.68,10.0024]
[1763582888906,6.8393,131.74,131.7,3.36]
[1763582889206,3.2,131.73,131.67,3.36]
[1763582889401,3.2,131.73,131.68,6.8419]
[1763582889712,3.2,131.73,131.69,3.36]
[1763582890008,0.05347322,131.72,131.7,0.05746903]
[1763582890214,10.09387322,131.72,131.7,0.05746903]
[1763582890701,3.25347322,131.72,131.7,0.05746903]
[1763582892917,0.05347322,131.72,131.7,3.41746903]
[1763582894814,0.05347322,131.72,131.71,3.36]
[1763582895202,3.2,131.78,131.72,3.36]
[1763582895613,3.2,131.78,131.72,10.1999]
[1763582895910,3.2,131.78,131.72,3.36]
[1763582896114,3.2,131.75,131.74,0.05421732]
[1763582896616,3.25721447,131.76,131.74,0.05421732]
[1763582897616,0.05721447,131.76,131.74,0.05421732]
[1763582898512,0.05721447,131.76,131.74,3.41421732]
[1763582900523,0.05721447,131.76,131.74,0.05421732]
[1763582900715,7.80325757,131.76,131.74,0.05421732]
[1763582901019,3.2,131.75,131.74,0.05421732]
[1763582901218,3.2,131.75,131.67,3.36]
[1763582902026,6.8401,131.73,131.69,3.36]
[1763582902322,0.04796315,131.72,131.7,3.41161673]
[1763582903724,3.24796315,131.72,131.7,0.05161673]
[1763582904822,10.08836315,131.72,131.7,0.05161673]
[1763582905214,3.17,131.71,131.7,0.05161673]
[1763582907121,6.8416,131.7,131.63,3.04]
[1763582907419,3.17,131.7,131.63,3.04]
[1763582907822,3.17,131.7,131.66,3.04]
[1763582908219,0.05605111,131.69,131.67,0.05315746]
[1763582909922,0.05605111,131.69,131.67,3.09315746]
[1763582910113,0.05605111,131.69,131.67,0.05315746]
[1763582912436,0.05605111,131.69,131.67,3.09315746]
[1763582914028,0.05605111,131.69,131.67,0.05315746]
[1763582914029,3.17,131.68,131.67,0.05315746]
[1763582914226,3.22605111,131.69,131.67,0.05315746]
[1763582916326,3.22605111,131.69,131.61,3.04]
[1763582916327,3.17,131.67,131.61,3.04]
[1763582917224,0.05256152,131.65,131.63,0.04892193]
[1763582917533,0.05256152,131.65,131.63,3.08892193]
[1763582919129,3.13256152,131.65,131.63,0.04892193]
[1763582919938,0.05256152,131.65,131.63,0.04892193]
[1763582920334,0.05256152,131.65,131.63,3.37892193]
[1763582921032,3.13256152,131.65,131.63,0.04892193]
[1763582921744,6.8445,131.64,131.63,0.04892193]
[1763582922622,3.13256152,131.65,131.63,0.04892193]
[1763582923740,9.97656152,131.65,131.63,0.04892193]
[1763582925040,12.83789252,131.64,131.63,0.04892193]
[1763582925433,5.99339252,131.64,131.63,0.04892193]
[1763582926437,0.05256152,131.65,131.63,3.37892193]
[1763582927733,0.05256152,131.65,131.63,0.04892193]
[1763582928242,0.05256152,131.65,131.63,3.37892193]
[1763582929235,3.13256152,131.65,131.63,0.04892193]
[1763582929943,5.99339252,131.64,131.63,0.04892193]
[1763582931244,0.05256152,131.65,131.63,3.37892193]
[1763582931433,5.99339252,131.64,131.63,0.04892193]
[1763582933041,3.08,131.63,131.57,3.33]
[1763582933348,3.08,131.61,131.57,3.33]
[1763582933839,9.9261,131.61,131.57,3.33]
[1763582934147,0.05170624,131.6,131.58,3.38835372]
[1763582936847,0.05170624,131.6,131.58,10.23595372]
[1763582937251,0.05170624,131.6,131.59,3.33]
[1763582938955,3.13170624,131.6,131.58,0.05835372]
[1763582939656,0.05170624,131.6,131.58,3.38835372]
[1763582940556,3.13170624,131.6,131.58,0.05835372]
[1763582940959,3.08,131.59,131.58,0.05835372]
[1763582942047,9.9271,131.59,131.58,0.05835372]
[1763582942354,2.96509876,131.6,131.54,3.33]
[1763582942355,9.928,131.58,131.54,3.33]
[1763582942552,12.84139252,131.58,131.54,3.33]
[1763582942752,3.08,131.57,131.54,3.33]
[1763582943356,12.84139252,131.58,131.54,3.33]
[1763582943656,3.08,131.57,131.54,3.33]
[1763582944861,12.84139252,131.58,131.54,3.33]
[1763582945050,0.04938204,131.57,131.55,0.04898559]
[1763582945252,0.04938204,131.57,131.55,3.37898559]
[1763582946758,3.12938204,131.57,131.55,0.04898559]
[1763582947054,3.08,131.55,131.5,19.29]
[1763582947259,3.08,131.53,131.5,19.29]
[1763582947651,5.99339252,131.54,131.51,3.13]
[1763582947849,6.04993928,131.54,131.51,3.18320268]
[1763582948061,12.89963928,131.54,131.51,3.18320268]
[1763582949168,10.0003,131.53,131.51,0.05320268]
[1763582950464,3.15,131.53,131.51,0.05320268]
[1763582952468,10.0002,131.53,131.51,0.05320268]
[1763582952670,3.15,131.53,131.51,0.05320268]
[1763582952855,2.96993928,131.54,131.45,3.13]
[1763582952856,3.15,131.51,131.45,3.13]
[1763582953458,3.15,131.5,131.47,3.13]
[1763582953755,3.20330273,131.5,131.47,3.18164036]
[1763582954159,0.05330273,131.5,131.47,6.09503288]
[1763582954356,0.05330273,131.5,131.48,3.13]
[1763582954761,0.05330273,131.5,131.48,9.9827]
[1763582954956,0.05330273,131.5,131.49,3.13]
[1763582956665,3.15,131.56,131.51,3.13]
[1763582957660,0.04983207,131.55,131.52,0.05470092]
[1763582957864,3.19983207,131.55,131.52,3.18470092]
[1763582961962,3.19983207,131.55,131.52,0.05470092]
[1763582962170,3.15,131.54,131.52,0.05470092]
[1763582962859,0.04983207,131.55,131.52,3.18470092]
[1763582963270,3.19983207,131.55,131.52,3.18470092]
[1763582966865,3.19983207,131.55,131.52,0.05470092]
[1763582967967,3.19,131.54,131.52,0.05470092]
[1763582969377,3.23983207,131.55,131.52,3.15470092]
[1763582969581,0.04983207,131.55,131.53,3.1]
[1763582969874,3.19,131.59,131.56,3.1]
[1763582970074,3.19,131.62,131.56,3.1]
[1763582970371,3.19,131.6,131.56,3.1]
[1763582970771,3.19,131.58,131.57,0.0490263]
[1763582970969,0.04863462,131.59,131.57,3.1490263]
[1763582974879,0.04863462,131.59,131.58,3.1]
[1763582976183,0.04863462,131.59,131.58,9.9476]
[1763582978380,3.04,131.64,131.6,3.19]
[1763582978684,3.04,131.64,131.57,3.19]
[1763582978886,9.8845,131.64,131.58,10.0371]
[1763582979483,3.09085988,131.62,131.6,0.05209837]
[1763582981480,0.05085988,131.62,131.6,3.24209837]
[1763582983580,3.09085988,131.62,131.6,3.24209837]
[1763582984182,0.05085988,131.62,131.6,3.24209837]
[1763582985178,3.09085988,131.62,131.6,0.05209837]
[1763582985584,3.09085988,131.62,131.6,3.24209837]
[1763582986181,3.09085988,131.62,131.6,0.05209837]
[1763582986380,3.09085988,131.62,131.6,3.24209837]
[1763582987072,3.09085988,131.62,131.6,0.05209837]
[1763582988287,3.04,131.61,131.6,0.05209837]
[1763582988884,9.8861,131.61,131.6,0.05209837]
[1763582991393,3.04,131.61,131.6,0.05209837]
[1763582993395,3.04,131.59,131.52,3.19]
[1763582993594,3.04,131.58,131.52,3.19]
[1763582993795,3.04,131.57,131.52,3.19]
[1763582994497,3.09498733,131.56,131.53,3.2410762]
[1763582995299,3.09498733,131.56,131.53,0.0510762]
[1763582995501,3.09498733,131.56,131.53,3.2410762]
[1763582996394,3.09498733,131.56,131.53,10.0912762]
[1763582997797,3.09498733,131.56,131.54,10.0396]
[1763582997798,0.05498733,131.56,131.54,10.0396]
[1763582998195,0.05498733,131.56,131.55,3.19]
[1763583000792,0.05498733,131.56,131.54,10.0396]
[1763583001392,0.05498733,131.56,131.53,3.2410762]
[1763583002699,3.04,131.61,131.55,3.19]
[1763583002998,3.04,131.6,131.53,3.19]
[1763583003203,3.04,131.59,131.53,10.0402]
[1763583003403,3.04,131.57,131.5,3.19]
[1763583003904,3.09364207,131.55,131.52,0.05316942]
[1763583004201,3.04,131.54,131.52,0.05316942]
[1763583004394,3.04,131.53,131.47,3.19]
[1763583005400,0.0502319,131.51,131.49,0.050478]
[1763583005702,3.0902319,131.51,131.49,0.050478]
[1763583007803,0.0502319,131.51,131.49,3.130478]
[1763583008798,0.0502319,131.51,131.49,9.982778]
[1763583009008,0.0502319,131.51,131.5,3.08]
[1763583012507,3.32,131.56,131.52,3.08]
[1763583013602,3.36955689,131.55,131.53,0.05627295]
[1763583013802,0.04955689,131.55,131.53,3.13627295]
[1763583014806,0.04955689,131.55,131.53,9.98637295]
[1763583016009,3.36955689,131.55,131.53,0.05627295]
[1763583017705,3.32,131.54,131.53,0.05627295]
[1763583019610,10.1697,131.54,131.53,0.05627295]
[1763583020202,10.1706,131.53,131.49,3.08]
[1763583020411,3.32,131.52,131.45,3.08]
[1763583020612,3.32,131.52,131.46,3.08]
[1763583020910,3.32,131.52,131.48,9.9328]
[1763583021204,3.32,131.52,131.49,3.08]
[1763583021405,0.0504636,131.51,131.49,3.13208134]
[1763583022111,3.3704636,131.51,131.49,0.05208134]
[1763583026115,0.0504636,131.51,131.49,10.01438134]
[1763583026611,0.0504636,131.51,131.5,3.11]
[1763583026916,0.0504636,131.51,131.5,9.9618]
[1763583027210,0.0504636,131.51,131.5,3.11]
[1763583027913,0.0504636,131.51,131.5,9.9618]
[1763583028608,0.0504636,131.51,131.5,3.11]
[1763583029912,0.0504636,131.51,131.5,9.9618]
[1763583030107,3.06,131.57,131.51,3.11]
[1763583030915,3.06,131.57,131.54,9.9597]